[Event "Championnat d'Europe de Blitz"]
[Date "2024.12.09"]
[White "Sarana, Alexey"]
[Black "Zajic, Milan"]
[WhiteElo "2674"]
[BlackElo "2392"]
[Round "3.1"]
[Result "1-0"]
[TimeControl "180+2"]

1. d4 {[%emt 00:14:45] [%clk 00:03:03]} Nf6 {[%clk 00:03:03]} 2. c4 {[%clk
00:03:05]} e6 {[%clk 00:03:04]} 3. Nc3 {[%emt 00:00:02] [%clk 00:03:06]} Bb4
{[%clk 00:03:05]} 4. Nf3 {[%emt 00:00:01] [%clk 00:03:07]} O-O {[%emt 00:00:27]
[%clk 00:02:40]} 5. e3 {[%clk 00:03:07]} d5 {[%emt 00:00:07] [%clk 00:02:35]} 6.
Bd3 {[%emt 00:00:01] [%clk 00:03:08]} dxc4 {[%emt 00:00:08] [%clk 00:02:30]} 7.
Bxc4 {[%clk 00:03:08]} c5 {[%emt 00:00:01] [%clk 00:02:30]} 8. O-O {[%emt
00:00:02] [%clk 00:03:08]} cxd4 {[%emt 00:00:12] [%clk 00:02:21]} 9. exd4 {[%emt
00:00:01] [%clk 00:03:09]} b6 {[%emt 00:00:08] [%clk 00:02:16]} 10. Qe2 {[%emt
00:00:01] [%clk 00:03:10]} Bb7 {[%emt 00:00:08] [%clk 00:02:09]} 11. Rd1 {[%emt
00:00:01] [%clk 00:03:10]} h6 {[%emt 00:00:09] [%clk 00:02:03]} 12. h3 {[%emt
00:00:02] [%clk 00:03:10]} Nc6 {[%emt 00:00:03] [%clk 00:02:02]} 13. d5 {[%emt
00:00:09] [%clk 00:03:03]} exd5 {[%emt 00:00:01] [%clk 00:02:02]} 14. Nxd5
{[%emt 00:00:02] [%clk 00:03:04]} Nxd5 {[%emt 00:00:01] [%clk 00:02:03]} 15.
Bxd5 {[%emt 00:00:01] [%clk 00:03:05]} Qf6 {[%emt 00:00:01] [%clk 00:02:04]} 16.
Be3 {[%emt 00:00:02] [%clk 00:03:05]} Rfe8 {[%emt 00:00:04] [%clk 00:02:02]} 17.
Qb5 {[%emt 00:00:37] [%clk 00:02:30]} Bf8 {[%emt 00:00:40] [%clk 00:01:23]} 18.
Rd2 {[%emt 00:00:02] [%clk 00:02:31]} Rad8 {[%emt 00:00:26] [%clk 00:01:00]} 19.
Rad1 {[%emt 00:00:01] [%clk 00:02:31]} Rd6 {[%emt 00:00:01] [%clk 00:01:01]} 20.
Bxf7+ {[%emt 00:01:38] [%clk 00:00:55]} Kxf7 {[%emt 00:00:20] [%clk 00:00:43]}
21. Rxd6 {[%emt 00:00:02] [%clk 00:00:56]} Bxd6 {[%emt 00:00:01] [%clk
00:00:43]} 22. Qh5+ {[%emt 00:00:01] [%clk 00:00:57]} Kf8 {[%emt 00:00:12] [%clk
00:00:34]} 23. Nh4 {[%emt 00:00:06] [%clk 00:00:52]} Re6 {[%emt 00:00:07] [%clk
00:00:30]} 24. Nf5 {[%emt 00:00:07] [%clk 00:00:46]} Kg8 {[%emt 00:00:10] [%clk
00:00:22]} 25. Qg4 {[%emt 00:00:22] [%clk 00:00:26]} Kh7 {[%emt 00:00:04] [%clk
00:00:19]} 26. Nh4 {[%emt 00:00:15] [%clk 00:00:13]} Bc8 {[%emt 00:00:05] [%clk
00:00:17]} 27. Qc4 {[%emt 00:00:02] [%clk 00:00:14]} Bc5 {[%emt 00:00:09] [%clk
00:00:10]} 28. Bxc5 {[%emt 00:00:05] [%clk 00:00:10]} bxc5 {[%emt 00:00:01]
[%clk 00:00:11]} 29. Qc2+ {[%emt 00:00:06] [%clk 00:00:06]} g6 {[%emt 00:00:01]
[%clk 00:00:12]} 30. Nf3 {[%emt 00:00:03] [%clk 00:00:06]} Rd6 {[%emt 00:00:02]
[%clk 00:00:12]} 31. Re1 {[%emt 00:00:02] [%clk 00:00:05]} Bf5 {[%emt 00:00:07]
[%clk 00:00:07]} 32. Qxc5 {[%emt 00:00:02] [%clk 00:00:06]} Re6 {[%emt 00:00:01]
[%clk 00:00:08]} 33. Rd1 {[%emt 00:00:01] [%clk 00:00:07]} Ne5 {[%emt 00:00:03]
[%clk 00:00:06]} 34. Nxe5 {[%emt 00:00:02] [%clk 00:00:07]} Rxe5 {[%emt
00:00:02] [%clk 00:00:07]} 35. Qxa7+ {[%emt 00:00:01] [%clk 00:00:08]} Re7
{[%emt 00:00:01] [%clk 00:00:08]} 36. Qa3 {[%clk 00:00:09]} Rb7 {[%emt 00:00:03]
[%clk 00:00:06]} 37. b3 {[%emt 00:00:02] [%clk 00:00:09]} h5 {[%emt 00:00:04]
[%clk 00:00:04]} 38. Qc5 {[%emt 00:00:02] [%clk 00:00:09]} Qb6 {[%emt 00:00:02]
[%clk 00:00:04]} 39. Qe5 {[%emt 00:00:02] [%clk 00:00:09]} Ra7 {[%emt 00:00:01]}
40. Rd2 {[%clk 00:00:10]} Qa5 {[%emt 00:00:03] [%clk 00:00:05]} 41. Qe3 {[%clk
00:00:11]} Qa6 {[%emt 00:00:02] [%clk 00:00:05]} 42. Qf4 {[%clk 00:00:12]} Re7
{[%emt 00:00:02] [%clk 00:00:05]} 43. Kh2 {[%emt 00:00:03] [%clk 00:00:11]} Qe6
{[%emt 00:00:01] [%clk 00:00:06]} 44. a4 {[%emt 00:00:07] [%clk 00:00:06]} Qe5
{[%clk 00:00:07]} 45. Qxe5 {[%emt 00:00:01] [%clk 00:00:07]} Rxe5 {[%emt
00:00:01] [%clk 00:00:08]} 46. b4 {[%clk 00:00:08]} Re4 {[%emt 00:00:06] [%clk
00:00:04]} 47. Rb2 {[%emt 00:00:01] [%clk 00:00:09]} Bd7 {[%emt 00:00:02] [%clk
00:00:04]} 48. f3 {[%clk 00:00:11]} Rc4 {[%emt 00:00:01] [%clk 00:00:05]} 49. a5
{[%emt 00:00:05] [%clk 00:00:07]} Bb5 {[%emt 00:00:01] [%clk 00:00:06]} 50. Kg3
{[%clk 00:00:08]} h4+ {[%emt 00:00:01] [%clk 00:00:07]} 51. Kf2 {[%clk
00:00:10]} Rc3 {[%emt 00:00:01] [%clk 00:00:08]} 52. Rd2 {[%emt 00:00:02] [%clk
00:00:10]} Rb3 {[%emt 00:00:02] [%clk 00:00:08]} 53. Rd4 {[%clk 00:00:11]} g5
{[%emt 00:00:03] [%clk 00:00:07]} 54. Rd5 {[%clk 00:00:12]} Rxb4 {[%emt
00:00:05] [%clk 00:00:05]} 55. Rxg5 {[%emt 00:00:01] [%clk 00:00:13]} Kh6 {[%emt
00:00:01] [%clk 00:00:06]} 56. Rg4 {[%emt 00:00:02] [%clk 00:00:13]} Rxg4 {[%emt
00:00:06] [%clk 00:00:03]} 57. fxg4 {[%emt 00:00:02] [%clk 00:00:13]} Kg5 {[%clk
00:00:04]} 58. g3 {[%emt 00:00:01] [%clk 00:00:14]} Ba6 {[%emt 00:00:03] [%clk
00:00:03]} 59. gxh4+ {[%emt 00:00:08] [%clk 00:00:08]} Kxh4 {[%emt 00:00:01]
[%clk 00:00:04]} 60. Ke3 {[%clk 00:00:10]} Bc8 {[%emt 00:00:07]} 61. Ke4 1-0

[Site "Europe Echecs"]

[Event "Championnat d'Europe de Blitz"]
[Date "2024.12.09"]
[White "Fedoseev, Vladimir"]
[Black "Costachi, Mihnea"]
[WhiteElo "2709"]
[BlackElo "2464"]
[Round "3.2"]
[Result "1-0"]
[TimeControl "180+2"]

1. e4 {[%emt 00:00:05] [%clk 00:02:57]} e5 {[%emt 00:00:02] [%clk 00:03:03]} 2.
Nf3 {[%clk 00:02:58]} Nc6 {[%emt 00:00:02] [%clk 00:03:04]} 3. Bc4 {[%emt
00:00:01] [%clk 00:02:59]} Bc5 {[%emt 00:00:03] [%clk 00:03:03]} 4. O-O {[%emt
00:00:03] [%clk 00:02:58]} d6 {[%emt 00:00:02] [%clk 00:03:03]} 5. c3 {[%emt
00:00:02] [%clk 00:02:58]} Nf6 {[%emt 00:00:01] [%clk 00:03:04]} 6. d4 {[%emt
00:00:02] [%clk 00:02:58]} Bb6 {[%emt 00:00:01] [%clk 00:03:04]} 7. Re1 {[%emt
00:00:25] [%clk 00:02:36]} h6 {[%emt 00:00:06] [%clk 00:03:00]} 8. a4 {[%emt
00:00:25] [%clk 00:02:13]} a6 {[%emt 00:00:11] [%clk 00:02:51]} 9. Be3 {[%emt
00:00:09] [%clk 00:02:06]} Ng4 {[%emt 00:00:31] [%clk 00:02:21]} 10. Nbd2 {[%clk
00:02:07]} O-O {[%emt 00:00:06] [%clk 00:02:18]} 11. Nf1 {[%emt 00:00:05] [%clk
00:02:03]} Qf6 {[%emt 00:00:23] [%clk 00:01:58]} 12. dxe5 {[%emt 00:00:11] [%clk
00:01:53]} Ncxe5 {[%emt 00:00:15] [%clk 00:01:45]} 13. Bxb6 {[%emt 00:00:01]
[%clk 00:01:55]} Nxc4 {[%emt 00:00:26] [%clk 00:01:21]} 14. Bd4 {[%emt 00:00:01]
[%clk 00:01:55]} Qg6 {[%emt 00:00:15] [%clk 00:01:08]} 15. Qe2 {[%emt 00:00:04]
[%clk 00:01:54]} Nce5 {[%emt 00:00:06] [%clk 00:01:04]} 16. N3d2 {[%emt
00:00:13] [%clk 00:01:43]} c5 {[%emt 00:00:08] [%clk 00:00:58]} 17. Bxe5 {[%emt
00:00:03] [%clk 00:01:41]} Nxe5 {[%emt 00:00:03] [%clk 00:00:58]} 18. f4 {[%emt
00:00:02] [%clk 00:01:41]} Nc6 {[%emt 00:00:12] [%clk 00:00:48]} 19. Nc4 {[%emt
00:00:01] [%clk 00:01:42]} Bg4 {[%emt 00:00:13] [%clk 00:00:37]} 20. Qd3 {[%emt
00:00:07] [%clk 00:01:36]} Rad8 {[%emt 00:00:16] [%clk 00:00:24]} 21. f5 {[%emt
00:00:09] [%clk 00:01:29]} Qg5 {[%emt 00:00:02] [%clk 00:00:24]} 22. h3 {[%emt
00:00:29] [%clk 00:01:01]} d5 {[%clk 00:00:25]} 23. exd5 {[%emt 00:00:18] [%clk
00:00:45]} Bxf5 {[%emt 00:00:01] [%clk 00:00:26]} 24. Qf3 {[%clk 00:00:46]} Ne7
{[%emt 00:00:20] [%clk 00:00:09]} 25. Rxe7 {[%emt 00:00:05] [%clk 00:00:42]}
Qxe7 {[%emt 00:00:05] [%clk 00:00:07]} 26. Qxf5 {[%emt 00:00:01] [%clk
00:00:43]} Qe2 {[%emt 00:00:02] [%clk 00:00:07]} 27. b3 {[%emt 00:00:26] [%clk
00:00:20]} Rfe8 {[%emt 00:00:03] [%clk 00:00:06]} 28. a5 {[%emt 00:00:05] [%clk
00:00:16]} g6 {[%emt 00:00:01] [%clk 00:00:07]} 29. Qf4 {[%emt 00:00:05] [%clk
00:00:12]} Rxd5 {[%emt 00:00:03] [%clk 00:00:07]} 30. Nfe3 {[%clk 00:00:14]} Rg5
{[%emt 00:00:02] [%clk 00:00:07]} 31. Ng4 {[%emt 00:00:02] [%clk 00:00:14]} Kg7
{[%emt 00:00:07] [%clk 00:00:03]} 32. Qf6+ {[%clk 00:00:15]} Kf8 {[%emt
00:00:02] [%clk 00:00:03]} 33. Qh8+ {[%emt 00:00:02] [%clk 00:00:15]} Ke7 {[%emt
00:00:01] [%clk 00:00:05]} 34. Qxh6 {[%emt 00:00:01] [%clk 00:00:15]} Rf5 {[%emt
00:00:03] [%clk 00:00:04]} 35. Qe3+ {[%emt 00:00:02] [%clk 00:00:14]} Kf8 {[%emt
00:00:03] [%clk 00:00:03]} 36. Qxe2 {[%emt 00:00:02] [%clk 00:00:15]} Rxe2
{[%emt 00:00:01]} 37. Rd1 {[%clk 00:00:16]} Rc2 {[%emt 00:00:03] [%clk
00:00:05]} 38. Nge3 {[%clk 00:00:17]} Rxc3 {[%emt 00:00:02] [%clk 00:00:05]} 39.
Nxf5 {[%clk 00:00:18]} gxf5 {[%clk 00:00:07]} 40. Rb1 {[%emt 00:00:03] [%clk
00:00:17]} Ke7 {[%emt 00:00:04] [%clk 00:00:04]} 41. Kf2 {[%clk 00:00:18]} Kf6
{[%emt 00:00:02] [%clk 00:00:05]} 42. Nd6 {[%emt 00:00:01] [%clk 00:00:19]} Rc2+
{[%emt 00:00:03] [%clk 00:00:04]} 43. Kf1 {[%clk 00:00:20]} Ke5 {[%emt 00:00:02]
[%clk 00:00:04]} 44. Nxb7 {[%emt 00:00:07] [%clk 00:00:15]} Kd4 {[%emt 00:00:01]
[%clk 00:00:05]} 45. Nd6 {[%emt 00:00:03] [%clk 00:00:13]} f4 {[%emt 00:00:01]
[%clk 00:00:06]} 46. Re1 {[%emt 00:00:04] [%clk 00:00:12]} Rb2 {[%emt 00:00:03]
[%clk 00:00:05]} 47. Rd1+ {[%emt 00:00:02] [%clk 00:00:12]} Kc3 {[%emt 00:00:03]
[%clk 00:00:04]} 48. Ne4+ {[%clk 00:00:13]} Kxb3 {[%emt 00:00:02] [%clk
00:00:04]} 49. Nxc5+ {[%clk 00:00:14]} Kc4 {[%emt 00:00:01] [%clk 00:00:05]} 50.
Nxa6 {[%emt 00:00:03] [%clk 00:00:13]} 1-0

[Site "Europe Echecs"]

[Event "Championnat d'Europe de Blitz"]
[Date "2024.12.09"]
[White "Dragnev, Valentin"]
[Black "Korobov, Anton"]
[WhiteElo "2563"]
[BlackElo "2629"]
[Round "3.3"]
[Result "0-1"]
[TimeControl "180+2"]

1. e4 {[%emt 00:14:44] [%clk 00:03:03]} e6 {[%emt 00:00:02] [%clk 00:03:03]} 2.
d4 {[%clk 00:03:04]} d5 {[%clk 00:03:04]} 3. Nd2 {[%emt 00:00:02] [%clk
00:03:05]} h6 {[%emt 00:00:12] [%clk 00:02:54]} 4. Ngf3 {[%emt 00:00:05] [%clk
00:03:01]} Nf6 {[%emt 00:00:02] [%clk 00:02:53]} 5. e5 {[%emt 00:00:03] [%clk
00:03:01]} Nfd7 {[%clk 00:02:54]} 6. c3 {[%emt 00:00:01] [%clk 00:03:02]} c5
{[%emt 00:00:01] [%clk 00:02:55]} 7. a3 {[%emt 00:00:04] [%clk 00:03:00]} a5
{[%emt 00:00:13] [%clk 00:02:44]} 8. Bb5 {[%emt 00:00:11] [%clk 00:02:50]} Nc6
{[%emt 00:00:02] [%clk 00:02:44]} 9. O-O {[%emt 00:00:03] [%clk 00:02:49]} Qb6
{[%emt 00:00:08] [%clk 00:02:39]} 10. Qa4 {[%emt 00:00:19] [%clk 00:02:31]} Be7
{[%emt 00:00:04] [%clk 00:02:37]} 11. Rd1 {[%emt 00:00:24] [%clk 00:02:09]} O-O
{[%emt 00:00:16] [%clk 00:02:24]} 12. Nf1 {[%emt 00:00:02] [%clk 00:02:09]} c4
{[%emt 00:00:11] [%clk 00:02:14]} 13. b3 {[%emt 00:00:29] [%clk 00:01:43]} cxb3
{[%emt 00:00:03] [%clk 00:02:13]} 14. Rb1 {[%emt 00:00:01] [%clk 00:01:43]} f5
{[%emt 00:00:25] [%clk 00:01:51]} 15. Qxb3 {[%emt 00:00:23] [%clk 00:01:23]} Na7
{[%emt 00:00:15] [%clk 00:01:37]} 16. a4 {[%emt 00:00:35] [%clk 00:00:50]} Nxb5
{[%emt 00:00:02] [%clk 00:01:37]} 17. axb5 {[%emt 00:00:01] [%clk 00:00:51]} Qc7
{[%emt 00:00:06] [%clk 00:01:33]} 18. Ba3 {[%emt 00:00:02] [%clk 00:00:51]} Nb6
{[%emt 00:00:03] [%clk 00:01:32]} 19. Bxe7 {[%emt 00:00:07] [%clk 00:00:46]}
Qxe7 {[%emt 00:00:01] [%clk 00:01:33]} 20. N1d2 {[%emt 00:00:03] [%clk
00:00:46]} a4 {[%emt 00:00:08] [%clk 00:01:27]} 21. Qa2 {[%emt 00:00:07] [%clk
00:00:40]} Bd7 {[%emt 00:00:01] [%clk 00:01:27]} 22. Ne1 {[%emt 00:00:05] [%clk
00:00:38]} Rfc8 {[%emt 00:00:02] [%clk 00:01:27]} 23. Rdc1 {[%clk 00:00:40]} Ra5
{[%emt 00:00:13] [%clk 00:01:16]} 24. Nd3 {[%emt 00:00:09] [%clk 00:00:33]} Rxb5
{[%emt 00:00:07] [%clk 00:01:11]} 25. Nc5 {[%emt 00:00:02] [%clk 00:00:33]}
Rcxc5 {[%emt 00:00:03] [%clk 00:01:10]} 26. dxc5 {[%emt 00:00:02] [%clk
00:00:33]} Qxc5 {[%emt 00:00:01] [%clk 00:01:10]} 27. Rxb5 {[%emt 00:00:04]
[%clk 00:00:32]} Bxb5 {[%emt 00:00:02] [%clk 00:01:10]} 28. Rb1 {[%emt 00:00:04]
[%clk 00:00:29]} Bc6 {[%emt 00:00:13] [%clk 00:01:00]} 29. Nf3 {[%emt 00:00:03]
[%clk 00:00:28]} Qxc3 {[%emt 00:00:05] [%clk 00:00:56]} 30. h4 {[%emt 00:00:02]
[%clk 00:00:29]} Nc4 {[%emt 00:00:02] [%clk 00:00:56]} 31. h5 {[%emt 00:00:05]
[%clk 00:00:26]} a3 {[%emt 00:00:02] [%clk 00:00:56]} 32. Qe2 {[%emt 00:00:11]
[%clk 00:00:16]} d4 {[%emt 00:00:02] [%clk 00:00:57]} 33. Ne1 {[%emt 00:00:03]
[%clk 00:00:15]} Be4 {[%emt 00:00:06] [%clk 00:00:52]} 34. Rd1 {[%emt 00:00:05]
[%clk 00:00:12]} Nb2 {[%emt 00:00:07] [%clk 00:00:47]} 35. Ra1 {[%clk 00:00:14]}
d3 {[%emt 00:00:04] [%clk 00:00:45]} 36. Qe3 {[%emt 00:00:01] [%clk 00:00:14]}
Nc4 {[%emt 00:00:03] [%clk 00:00:45]} 37. Qc5 {[%emt 00:00:05] [%clk 00:00:11]}
Qxa1 {[%emt 00:00:05] [%clk 00:00:43]} 38. Qc8+ {[%emt 00:00:01] [%clk
00:00:12]} Kh7 {[%clk 00:00:44]} 39. Qxe6 {[%emt 00:00:03] [%clk 00:00:10]}
Qxe1+ {[%emt 00:00:08] [%clk 00:00:37]} 40. Kh2 {[%clk 00:00:12]} Nxe5 {[%emt
00:00:03] [%clk 00:00:37]} 0-1

[Site "Europe Echecs"]

[Event "Championnat d'Europe de Blitz"]
[Date "2024.12.09"]
[White "Papasimakopoulos, Alexandros"]
[Black "Deac, Bogdan-Daniel"]
[WhiteElo "2379"]
[BlackElo "2696"]
[Round "3.4"]
[Result "1/2-1/2"]
[TimeControl "180+2"]

1. d4 {[%emt 00:14:40] [%clk 00:03:03]} Nf6 {[%emt 00:00:09] [%clk 00:02:54]} 2.
c4 {[%emt 00:00:01] [%clk 00:03:05]} e6 {[%emt 00:00:01] [%clk 00:02:55]} 3. Nc3
{[%clk 00:03:06]} Bb4 {[%emt 00:00:02] [%clk 00:02:55]} 4. Qb3 {[%emt 00:00:01]
[%clk 00:03:08]} c5 {[%emt 00:00:07] [%clk 00:02:49]} 5. dxc5 {[%emt 00:00:01]
[%clk 00:03:09]} Bxc5 {[%emt 00:00:05] [%clk 00:02:46]} 6. Nf3 {[%emt 00:00:02]
[%clk 00:03:10]} Nc6 {[%emt 00:00:06] [%clk 00:02:42]} 7. Bg5 {[%emt 00:00:01]
[%clk 00:03:10]} Be7 {[%emt 00:00:09] [%clk 00:02:35]} 8. e3 {[%emt 00:00:02]
[%clk 00:03:11]} h6 {[%emt 00:00:04] [%clk 00:02:32]} 9. Bh4 {[%emt 00:00:01]
[%clk 00:03:12]} b6 {[%emt 00:00:01] [%clk 00:02:33]} 10. Be2 {[%clk 00:03:13]}
Bb7 {[%emt 00:00:01] [%clk 00:02:34]} 11. O-O {[%emt 00:00:02] [%clk 00:03:13]}
O-O {[%emt 00:00:05] [%clk 00:02:30]} 12. Rfd1 {[%emt 00:00:02] [%clk 00:03:14]}
Rc8 {[%emt 00:00:05] [%clk 00:02:27]} 13. Qa4 {[%emt 00:00:08] [%clk 00:03:08]}
a6 {[%emt 00:01:21] [%clk 00:01:08]} 14. Rd2 {[%emt 00:00:02] [%clk 00:03:08]}
Qc7 {[%emt 00:00:05] [%clk 00:01:05]} 15. Rad1 {[%emt 00:00:03] [%clk 00:03:07]}
Rfd8 {[%emt 00:00:02] [%clk 00:01:05]} 16. Rc1 {[%emt 00:00:10] [%clk 00:02:59]}
Qb8 {[%emt 00:00:08] [%clk 00:00:58]} 17. Qd1 {[%emt 00:00:02] [%clk 00:03:00]}
d6 {[%emt 00:00:05] [%clk 00:00:56]} 18. Bg3 {[%emt 00:00:01] [%clk 00:03:01]}
Nh5 {[%emt 00:00:06] [%clk 00:00:52]} 19. Bh4 {[%emt 00:00:14] [%clk 00:02:49]}
Bxh4 {[%emt 00:00:07] [%clk 00:00:46]} 20. Nxh4 {[%emt 00:00:01] [%clk
00:02:50]} Nf6 {[%emt 00:00:01] [%clk 00:00:47]} 21. Nf3 {[%emt 00:00:01] [%clk
00:02:51]} Ne7 {[%emt 00:00:20] [%clk 00:00:29]} 22. Nd4 {[%emt 00:00:18] [%clk
00:02:35]} Qa8 {[%emt 00:00:04] [%clk 00:00:27]} 23. Qf1 {[%emt 00:00:12] [%clk
00:02:25]} Rc7 {[%emt 00:00:23] [%clk 00:00:06]} 24. Rcd1 {[%emt 00:00:31] [%clk
00:01:57]} Rdc8 {[%emt 00:00:02] [%clk 00:00:05]} 25. h3 {[%emt 00:00:28] [%clk
00:01:30]} d5 {[%emt 00:00:02] [%clk 00:00:07]} 26. cxd5 {[%clk 00:01:31]} Nexd5
{[%emt 00:00:01] [%clk 00:00:08]} 27. Nxd5 {[%emt 00:00:02] [%clk 00:01:32]}
Nxd5 {[%emt 00:00:03] [%clk 00:00:06]} 28. Bf3 {[%emt 00:00:02] [%clk 00:01:32]}
Nf6 {[%emt 00:00:03] [%clk 00:00:05]} 29. Bxb7 {[%emt 00:00:10] [%clk 00:01:24]}
Qxb7 {[%emt 00:00:01] [%clk 00:00:06]} 30. Nf3 {[%emt 00:00:09] [%clk 00:01:17]}
g6 {[%emt 00:00:01] [%clk 00:00:07]} 31. Rd8+ {[%emt 00:00:06] [%clk 00:01:13]}
Kg7 {[%emt 00:00:02] [%clk 00:00:08]} 32. Rxc8 {[%emt 00:00:01] [%clk 00:01:13]}
Qxc8 {[%emt 00:00:02] [%clk 00:00:09]} 33. Qd3 {[%emt 00:00:03] [%clk 00:01:11]}
b5 {[%emt 00:00:04] [%clk 00:00:07]} 34. a3 {[%emt 00:00:23] [%clk 00:00:50]}
Rc2 {[%emt 00:00:02] [%clk 00:00:07]} 35. Qd4 {[%emt 00:00:01] [%clk 00:00:51]}
Rc4 {[%emt 00:00:03] [%clk 00:00:06]} 36. Qd6 {[%emt 00:00:06] [%clk 00:00:47]}
Rc6 {[%emt 00:00:03] [%clk 00:00:05]} 37. Qd4 {[%clk 00:00:49]} Rc4 {[%emt
00:00:02] [%clk 00:00:06]} 38. Qd6 {[%clk 00:00:50]} Rc6 {[%emt 00:00:04] [%clk
00:00:04]} 39. Qd4 {[%emt 00:00:12] [%clk 00:00:40]} Qc7 {[%emt 00:00:01] [%clk
00:00:04]} 40. Ne5 {[%emt 00:00:11] [%clk 00:00:31]} Rc1 {[%emt 00:00:02] [%clk
00:00:05]} 41. Rxc1 {[%emt 00:00:04] [%clk 00:00:28]} Qxc1+ {[%emt 00:00:01]
[%clk 00:00:06]} 42. Kh2 {[%clk 00:00:30]} Qc7 {[%clk 00:00:07]} 43. f4 {[%emt
00:00:01] [%clk 00:00:31]} Kh7 {[%emt 00:00:02] [%clk 00:00:07]} 44. b3 {[%emt
00:00:11] [%clk 00:00:22]} Nd5 {[%emt 00:00:02] [%clk 00:00:07]} 45. Ng4 {[%emt
00:00:04] [%clk 00:00:20]} h5 {[%emt 00:00:01] [%clk 00:00:08]} 46. Nf6+ {[%emt
00:00:01] [%clk 00:00:21]} Nxf6 {[%emt 00:00:01] [%clk 00:00:09]} 47. Qxf6
{[%emt 00:00:02] [%clk 00:00:21]} Kg8 {[%emt 00:00:02] [%clk 00:00:09]} 48. Qd4
{[%emt 00:00:02] [%clk 00:00:22]} Qe7 {[%emt 00:00:02] [%clk 00:00:09]} 49. a4
{[%emt 00:00:01] [%clk 00:00:22]} bxa4 {[%emt 00:00:02] [%clk 00:00:09]} 50.
bxa4 {[%emt 00:00:01] [%clk 00:00:23]} Qc7 {[%emt 00:00:02] [%clk 00:00:09]} 51.
Kg3 {[%emt 00:00:07] [%clk 00:00:19]} a5 {[%emt 00:00:01] [%clk 00:00:10]} 52.
Kh2 {[%emt 00:00:01] [%clk 00:00:19]} Kh7 {[%emt 00:00:04] [%clk 00:00:08]} 53.
Kg3 {[%clk 00:00:20]} Kg8 {[%emt 00:00:03] [%clk 00:00:07]} 54. Kf2 {[%emt
00:00:01] [%clk 00:00:21]} Qb8 {[%emt 00:00:02] [%clk 00:00:07]} 55. Kg3 {[%emt
00:00:02] [%clk 00:00:21]} Qc7 {[%emt 00:00:03] [%clk 00:00:07]} 1/2-1/2

[Site "Europe Echecs"]

[Event "Championnat d'Europe de Blitz"]
[Date "2024.12.09"]
[White "Mamedov, Rauf"]
[Black "Boyer, Mahel"]
[WhiteElo "2656"]
[BlackElo "2526"]
[Round "3.5"]
[Result "1-0"]
[TimeControl "180+2"]

1. e4 {[%emt 00:16:41] [%clk 00:03:04]} Nc6 {[%clk 00:03:04]} 2. Nf3 {[%clk
00:03:05]} d5 {[%emt 00:00:01] [%clk 00:03:05]} 3. exd5 {[%emt 00:00:01] [%clk
00:03:07]} Qxd5 {[%emt 00:00:01] [%clk 00:03:06]} 4. Nc3 {[%clk 00:03:08]} Qh5
{[%emt 00:00:03] [%clk 00:03:06]} 5. Nb5 {[%clk 00:03:10]} Kd8 {[%clk 00:03:08]}
6. d4 {[%emt 00:00:10] [%clk 00:03:02]} Bg4 {[%clk 00:03:08]} 7. Bf4 {[%emt
00:00:10] [%clk 00:02:53]} a6 {[%emt 00:00:01] [%clk 00:03:09]} 8. Nc3 {[%emt
00:00:05] [%clk 00:02:50]} Bxf3 {[%emt 00:00:13] [%clk 00:02:59]} 9. gxf3 {[%clk
00:02:51]} Nf6 {[%emt 00:00:02] [%clk 00:02:59]} 10. d5 {[%emt 00:00:10] [%clk
00:02:43]} Ne5 {[%emt 00:00:02] [%clk 00:02:58]} 11. Be2 {[%emt 00:00:01] [%clk
00:02:44]} g6 {[%emt 00:00:13] [%clk 00:02:47]} 12. Bg3 {[%emt 00:00:07] [%clk
00:02:40]} Qf5 {[%emt 00:00:25] [%clk 00:02:23]} 13. f4 {[%emt 00:01:07] [%clk
00:01:35]} Ned7 {[%emt 00:00:02]} 14. Qd4 {[%clk 00:01:36]} Bg7 {[%emt 00:00:51]
[%clk 00:01:35]} 15. O-O-O {[%emt 00:00:02] [%clk 00:01:36]} Kc8 {[%emt
00:00:17] [%clk 00:01:21]} 16. Rhe1 {[%emt 00:00:02] [%clk 00:01:36]} Nh5 {[%emt
00:00:07] [%clk 00:01:17]} 17. Qb4 {[%emt 00:00:03] [%clk 00:01:34]} a5 {[%emt
00:00:50] [%clk 00:00:29]} 18. Qxe7 {[%emt 00:00:15] [%clk 00:01:20]} Bf6 {[%emt
00:00:22] [%clk 00:00:10]} 19. Qe3 {[%emt 00:00:01] [%clk 00:01:21]} Nb6 {[%emt
00:00:04] [%clk 00:00:08]} 20. d6 {[%emt 00:00:05] [%clk 00:01:18]} Nd7 {[%emt
00:00:07] [%clk 00:00:03]} 21. dxc7 {[%emt 00:00:05] [%clk 00:01:15]} a4 {[%emt
00:00:02] [%clk 00:00:03]} 22. Nb5 {[%emt 00:00:12] [%clk 00:01:05]} Ra6 {[%emt
00:00:01] [%clk 00:00:04]} 23. Bg4 {[%emt 00:00:20] [%clk 00:00:47]} Qxb5 {[%emt
00:00:02] [%clk 00:00:05]} 24. Bxd7+ {[%clk 00:00:48]} Qxd7 {[%emt 00:00:04]
[%clk 00:00:04]} 25. Rxd7 {[%clk 00:00:49]} Kxd7 {[%clk 00:00:04]} 26. f5 {[%emt
00:00:02] [%clk 00:00:50]} Rc6 {[%emt 00:00:03] [%clk 00:00:03]} 27. Qd3+ {[%emt
00:00:06] [%clk 00:00:46]} Kc8 {[%clk 00:00:04]} 28. Rd1 {[%clk 00:00:47]} Nxg3
{[%emt 00:00:02] [%clk 00:00:04]} 29. Qd7# {[%clk 00:00:00]} 1-0

[Site "Europe Echecs"]